[Event "European Online Club-ch-B 2021"]
[Site "Online"]
[Date "2021.03.27"]
[Round "6.16"]
[White "Zlatin, Alexander"]
[Black "Engel, Luis"]
[Result "0-1"]
[ECO "B22"]
[WhiteElo "2343"]
[BlackElo "2553"]
[Annotator "ChessBase"]
[PlyCount "72"]
[EventDate "2021.03.27"]
[EventType "team-tourn"]
[EventCountry "NET"]
[SourceTitle "playchess.com"]
[Source "ChessBase"]
[SourceQuality "1"]
[TimeControl "900+5"]

1. e4 {[%emt 0:00:00]} c5 {[%emt 0:00:02]} 2. d4 {[%emt 0:00:03]} cxd4 {[%emt 0:00:02]} 3. c3 {[%emt 0:00:01]} Nf6 {[%emt 0:00:01]} 4. e5 {[%emt 0:00:02]} Nd5 {[%emt 0:00:02]} 5. cxd4 {[%emt 0:00:02]} d6 {[%emt 0:00:03]} 6. Nf3 {[%emt 0:00:01]} Nc6 {[%emt 0:00:02]} 7. Bc4 {[%emt 0:00:02]} dxe5 {[%emt 0:00:03]} 8. Bxd5 {[%emt 0:00:02]} Qxd5 {[%emt 0:00:03]} 9. Nc3 {[%emt 0:00:02]} Qd6 {[%emt 0:00:19]} 10. d5 {[%emt 0:00:15]} Nd4 {[%emt 0:00:07]} 11. Nxd4 {[%emt 0:00:01]} exd4 {[%emt 0:00:00]} 12. Qxd4 {[%emt 0:00:01]} e5 {[%emt 0:00:06]} 13. Qd3 {[%emt 0:00:34]} Bd7 {[%emt 0:01:05]} 14. O-O {[%emt 0:00:05]} Be7 {[%emt 0:01:32]} 15. Ne4 {[%emt 0:01:33]} Qg6 {[%emt 0:00:28]} 16. d6 {[%emt 0:01:32]} Bc6 {[%emt 0:01:31]} 17. dxe7 {[%emt 0:01:29]} Bxe4 {[%emt 0:00:06]} 18. Qh3 {[%emt 0:02:09]} Kxe7 {[%emt 0:00:09]} 19. b3 {[%emt 0:00:16]} f6 {[%emt 0:03:42]} 20. Ba3+ {[%emt 0:00:15]} Kf7 {[%emt 0:00:02]} 21. Rac1 {[%emt 0:01:03]} Rhd8 {[%emt 0:00:38]} 22. Rfd1 {[%emt 0:01:56]} h5 {[%emt 0:01:25]} 23. f3 {[%emt 0:01:02]} Bc6 {[%emt 0:00:09]} 24. Qg3 {[%emt 0:00:42]} Rxd1+ {[%emt 0:00:33]} 25. Rxd1 {[%emt 0:00:03]} Qc2 {[%emt 0:00:07]} 26. Qe1 {[%emt 0:00:37]} Qxa2 {[%emt 0:00:12]} 27. Qb4 {[%emt 0:00:01]} Re8 {[%emt 0:00:33]} 28. Qc4+ {[%emt 0:00:15]} Kg6 {[%emt 0:00:04]} 29. Bc5 {[%emt 0:00:21]} e4 {[%emt 0:00:13]} 30. fxe4 {[%emt 0:00:37]} Rxe4 {[%emt 0:00:24]} 31. Qd3 {[%emt 0:00:09]} Kf7 {[%emt 0:00:14]} 32. Qh3 {[%emt 0:00:56]} Qe2 {[%emt 0:00:31]} 33. Rf1 {[%emt 0:00:11]} Re5 {[%emt 0:00:15]} 34. Bxa7 {[%emt 0:00:29]} Rg5 {[%emt 0:00:18]} 35. g3 {[%emt 0:00:02]} Qe4 {[%emt 0:00:10]} 36. Rf4 {[%emt 0:00:22]} Qxf4 {[%emt 0:00:09]} 0-1

[Event "European Online Club-ch-B 2021"]
[Site "Online"]
[Date "2021.03.27"]
[Round "6.17"]
[White "Edouard, Romain"]
[Black "Santos Latasa, Jaime"]
[Result "1/2-1/2"]
[ECO "D38"]
[WhiteElo "2614"]
[BlackElo "2608"]
[Annotator "ChessBase"]
[PlyCount "103"]
[EventDate "2021.03.27"]
[EventType "team-tourn"]
[EventCountry "NET"]
[SourceTitle "playchess.com"]
[Source "ChessBase"]
[SourceQuality "1"]
[TimeControl "900+5"]

1. d4 {[%emt 0:00:00]} Nf6 {[%emt 0:00:04]} 2. c4 {[%emt 0:00:04]} e6 {[%emt 0:00:02]} 3. Nc3 {[%emt 0:00:01]} d5 {[%emt 0:00:04]} 4. Nf3 {[%emt 0:00:02]} Bb4 {[%emt 0:00:03]} 5. cxd5 {[%emt 0:00:03]} exd5 {[%emt 0:00:02]} 6. Bg5 {[%emt 0:00:01]} h6 {[%emt 0:00:03]} 7. Bh4 {[%emt 0:00:02]} Nbd7 {[%emt 0:00:06]} 8. e3 {[%emt 0:00:02]} g5 {[%emt 0:00:07]} 9. Bg3 {[%emt 0:00:02]} Ne4 {[%emt 0:00:02]} 10. Nd2 {[%emt 0:00:16]} Nxg3 {[%emt 0:00:02]} 11. hxg3 {[%emt 0:00:02]} Nb6 {[%emt 0:00:05]} 12. Qc2 {[%emt 0:00:12]} Be6 {[%emt 0:00:16]} 13. Nb3 {[%emt 0:00:05]} c6 {[%emt 0:00:12]} 14. a3 {[%emt 0:00:10]} Bd6 {[%emt 0:00:02]} 15. Nc5 {[%emt 0:00:02]} Bxc5 {[%emt 0:00:11]} 16. dxc5 {[%emt 0:00:00]} Nd7 {[%emt 0:00:02]} 17. Ne2 {[%emt 0:00:08]} Qe7 {[%emt 0:00:04]} 18. b4 {[%emt 0:00:03]} a5 {[%emt 0:00:28]} 19. Rb1 {[%emt 0:00:08]} axb4 {[%emt 0:00:03]} 20. axb4 {[%emt 0:00:00]} h5 {[%emt 0:00:20]} 21. Nd4 {[%emt 0:00:06]} h4 {[%emt 0:00:03]} 22. gxh4 {[%emt 0:00:15]} gxh4 {[%emt 0:00:05]} 23. g3 {[%emt 0:00:02]} Qf6 {[%emt 0:00:36]} 24. gxh4 {[%emt 0:00:08]} Ke7 {[%emt 0:00:05]} 25. b5 {[%emt 0:00:04]} Bg4 {[%emt 0:00:45]} 26. bxc6 {[%emt 0:00:24]} bxc6 {[%emt 0:00:03]} 27. Be2 {[%emt 0:00:02]} Bxe2 {[%emt 0:00:24]} 28. Kxe2 {[%emt 0:00:00]} Ne5 {[%emt 0:00:08]} 29. Rb6 {[%emt 0:00:29]} Rhg8 {[%emt 0:00:54]} 30. Rhb1 {[%emt 0:00:21]} Rg2 {[%emt 0:00:13]} 31. Qf5 {[%emt 0:00:02]} Ra2+ {[%emt 0:00:13]} 32. R1b2 {[%emt 0:00:05]} Rxb2+ {[%emt 0:00:06]} 33. Rxb2 {[%emt 0:00:00]} Qxf5 {[%emt 0:00:15]} 34. Nxf5+ {[%emt 0:00:03]} Kf6 {[%emt 0:00:02]} 35. Kf1 {[%emt 0:00:21]} Rh2 {[%emt 0:00:24]} 36. Nd4 {[%emt 0:00:04]} Rxh4 {[%emt 0:00:01]} 37. Nxc6 {[%emt 0:00:05]} Nxc6 {[%emt 0:00:48]} 38. Rb6 {[%emt 0:00:03]} Rc4 {[%emt 0:00:03]} 39. Rxc6+ {[%emt 0:00:03]} Ke5 {[%emt 0:00:04]} 40. Ke2 {[%emt 0:00:15]} Rc2+ {[%emt 0:00:11]} 41. Kf3 {[%emt 0:00:02]} d4 {[%emt 0:00:11]} 42. Rc7 {[%emt 0:00:12]} dxe3 {[%emt 0:00:09]} 43. fxe3 {[%emt 0:00:00]} f5 {[%emt 0:00:48]} 44. Rc8 {[%emt 0:00:34]} Rc3 {[%emt 0:00:27]} 45. c6 {[%emt 0:00:12]} f4 {[%emt 0:00:19]} 46. c7 {[%emt 0:00:08]} Rxe3+ {[%emt 0:00:07]} 47. Kf2 {[%emt 0:00:09]} Kd6 {[%emt 0:00:01]} 48. Rf8 {[%emt 0:00:04]} Kxc7 {[%emt 0:00:03]} 49. Rxf4 {[%emt 0:00:01]} Re6 {[%emt 0:00:02]} 50. Rf3 {[%emt 0:00:03]} Kd6 {[%emt 0:00:06]} 51. Re3 {[%emt 0:00:02]} Rxe3 {[%emt 0:00:02]} 52. Kxe3 {[%emt 0:00:00]} 1/2-1/2

[Event "European Online Club-ch-B 2021"]
[Site "Online"]
[Date "2021.03.27"]
[Round "6.18"]
[White "Admiraal, Miguoel"]
[Black "Fontaine, Robert"]
[Result "1-0"]
[ECO "D91"]
[WhiteElo "2475"]
[BlackElo "2550"]
[Annotator "ChessBase"]
[PlyCount "107"]
[EventDate "2021.03.27"]
[EventType "team-tourn"]
[EventCountry "NET"]
[SourceTitle "playchess.com"]
[Source "ChessBase"]
[SourceQuality "1"]
[TimeControl "900+5"]

1. d4 {[%emt 0:00:00]} Nf6 {[%emt 0:00:04]} 2. Bg5 {[%emt 0:00:02]} d5 {[%emt 0:00:04]} 3. e3 {[%emt 0:00:03]} Nbd7 {[%emt 0:00:11]} 4. Nf3 {[%emt 0:00:02]} g6 {[%emt 0:00:04]} 5. c4 {[%emt 0:00:16]} Bg7 {[%emt 0:00:03]} 6. Nc3 {[%emt 0:00:09]} c6 {[%emt 0:00:12]} 7. cxd5 {[%emt 0:00:08]} Nxd5 {[%emt 0:00:10]} 8. Nxd5 {[%emt 0:00:08]} cxd5 {[%emt 0:00:02]} 9. Be2 {[%emt 0:00:09]} O-O {[%emt 0:00:06]} 10. O-O {[%emt 0:00:02]} Nf6 {[%emt 0:00:01]} 11. Qb3 {[%emt 0:00:32]} Ne4 {[%emt 0:00:10]} 12. Bf4 {[%emt 0:00:06]} a5 {[%emt 0:01:15]} 13. Rfc1 {[%emt 0:00:22]} a4 {[%emt 0:00:03]} 14. Qb4 {[%emt 0:00:03]} Bf6 {[%emt 0:01:47]} 15. Bc7 {[%emt 0:04:54]} Qd7 {[%emt 0:00:07]} 16. Bb5 {[%emt 0:02:05]} Qf5 {[%emt 0:00:10]} 17. Bxa4 {[%emt 0:00:08]} g5 {[%emt 0:00:05]} 18. Rc2 {[%emt 0:00:02]} h5 {[%emt 0:00:20]} 19. Ne5 {[%emt 0:00:17]} g4 {[%emt 0:00:28]} 20. Rf1 {[%emt 0:00:38]} h4 {[%emt 0:00:44]} 21. f3 {[%emt 0:00:15]} g3 {[%emt 0:01:56]} 22. h3 {[%emt 0:01:14]} Ng5 {[%emt 0:00:02]} 23. Ng4 {[%emt 0:00:14]} Bg7 {[%emt 0:00:02]} 24. Rc3 {[%emt 0:00:47]} Qg6 {[%emt 0:00:08]} 25. Bc2 {[%emt 0:00:06]} Qe6 {[%emt 0:02:09]} 26. Bf4 {[%emt 0:00:22]} f6 {[%emt 0:00:29]} 27. Rc7 {[%emt 0:00:13]} Bd7 {[%emt 0:00:15]} 28. Bb3 {[%emt 0:01:01]} Rfe8 {[%emt 0:01:07]} 29. Qxb7 {[%emt 0:00:11]} Rab8 {[%emt 0:00:05]} 30. Bxd5 {[%emt 0:00:48]} Rxb7 {[%emt 0:00:24]} 31. Bxe6+ {[%emt 0:00:03]} Nxe6 {[%emt 0:00:08]} 32. Rxb7 {[%emt 0:00:01]} Nxf4 {[%emt 0:00:01]} 33. Rxd7 {[%emt 0:00:09]} Ne2+ {[%emt 0:00:02]} 34. Kh1 {[%emt 0:00:01]} Rc8 {[%emt 0:00:03]} 35. a4 {[%emt 0:00:17]} Rc2 {[%emt 0:00:18]} 36. a5 {[%emt 0:00:17]} Rxb2 {[%emt 0:00:01]} 37. Ra1 {[%emt 0:00:09]} f5 {[%emt 0:00:49]} 38. a6 {[%emt 0:00:07]} Rb8 {[%emt 0:00:54]} 39. a7 {[%emt 0:00:03]} Ra8 {[%emt 0:00:01]} 40. Ne5 {[%emt 0:00:28]} f4 {[%emt 0:00:07]} 41. exf4 {[%emt 0:00:15]} Nc3 {[%emt 0:00:14]} 42. Rb7 {[%emt 0:00:04]} Bxe5 {[%emt 0:00:07]} 43. fxe5 {[%emt 0:00:02]} Kf7 {[%emt 0:00:02]} 44. Rb8 {[%emt 0:00:02]} Rxa7 {[%emt 0:00:02]} 45. Rxa7 {[%emt 0:00:03]} Nd5 {[%emt 0:00:01]} 46. Ra6 {[%emt 0:00:04]} Nf4 {[%emt 0:00:04]} 47. Rh8 {[%emt 0:00:03]} e6 {[%emt 0:00:03]} 48. Rxh4 {[%emt 0:00:03]} Nd3 {[%emt 0:00:01]} 49. Rh7+ {[%emt 0:00:03]} Kg6 {[%emt 0:00:02]} 50. Re7 {[%emt 0:00:01]} Kg5 {[%emt 0:00:02]} 51. Raxe6 {[%emt 0:00:03]} Kf4 {[%emt 0:00:01]} 52. Ra6 {[%emt 0:00:07]} Ke3 {[%emt 0:00:04]} 53. Ra3 {[%emt 0:00:02]} Ke2 {[%emt 0:00:01]} 54. Rxd3 {[%emt 0:00:01]} 1-0

[Event "European Online Club-ch-B 2021"]
[Site "Online"]
[Date "2021.03.27"]
[Round "6.19"]
[White "Sokolov, Andrei"]
[Black "Matnadze, Ana"]
[Result "1/2-1/2"]
[ECO "B11"]
[WhiteElo "2516"]
[BlackElo "2421"]
[Annotator "ChessBase"]
[PlyCount "111"]
[EventDate "2021.03.27"]
[EventType "team-tourn"]
[EventCountry "NET"]
[SourceTitle "playchess.com"]
[Source "ChessBase"]
[SourceQuality "1"]
[TimeControl "900+5"]

1. e4 {[%emt 0:00:00]} c6 {[%emt 0:00:06]} 2. Nc3 {[%emt 0:00:16]} d5 {[%emt 0:00:02]} 3. Nf3 {[%emt 0:00:05]} a6 {[%emt 0:00:03]} 4. h3 {[%emt 0:00:41]} g6 {[%emt 0:00:04]} 5. d4 {[%emt 0:01:04]} Bg7 {[%emt 0:00:09]} 6. Bd3 {[%emt 0:00:31]} dxe4 {[%emt 0:00:39]} 7. Nxe4 {[%emt 0:00:45]} Nf6 {[%emt 0:00:07]} 8. Nxf6+ {[%emt 0:01:18]} exf6 {[%emt 0:00:04]} 9. Qe2+ {[%emt 0:00:42]} Be6 {[%emt 0:00:20]} 10. Bc4 {[%emt 0:00:34]} Qe7 {[%emt 0:00:55]} 11. O-O {[%emt 0:00:46]} Bxc4 {[%emt 0:00:11]} 12. Qxc4 {[%emt 0:00:05]} O-O {[%emt 0:00:01]} 13. Bf4 {[%emt 0:00:33]} a5 {[%emt 0:00:29]} 14. Rfe1 {[%emt 0:00:29]} Qd7 {[%emt 0:00:06]} 15. a4 {[%emt 0:01:10]} Na6 {[%emt 0:00:08]} 16. c3 {[%emt 0:00:14]} Rac8 {[%emt 0:00:48]} 17. Re2 {[%emt 0:00:14]} Nc7 {[%emt 0:00:09]} 18. Bxc7 {[%emt 0:00:07]} Rxc7 {[%emt 0:00:15]} 19. Qc5 {[%emt 0:00:35]} Ra8 {[%emt 0:00:18]} 20. Rae1 {[%emt 0:00:10]} Bf8 {[%emt 0:00:03]} 21. Qb6 {[%emt 0:00:17]} Kg7 {[%emt 0:00:40]} 22. Nd2 {[%emt 0:02:22]} Ra6 {[%emt 0:01:28]} 23. Qb3 {[%emt 0:00:06]} c5 {[%emt 0:00:47]} 24. d5 {[%emt 0:00:51]} c4 {[%emt 0:00:23]} 25. Nxc4 {[%emt 0:00:09]} Qxd5 {[%emt 0:00:03]} 26. Nd2 {[%emt 0:00:03]} Qc6 {[%emt 0:01:07]} 27. Nf3 {[%emt 0:00:17]} Rb6 {[%emt 0:00:11]} 28. Qd1 {[%emt 0:00:56]} Rd7 {[%emt 0:00:21]} 29. Nd4 {[%emt 0:00:07]} Qc7 {[%emt 0:00:41]} 30. Rd2 {[%emt 0:00:12]} Rbd6 {[%emt 0:00:35]} 31. Qb3 {[%emt 0:00:37]} Qc5 {[%emt 0:00:26]} 32. Red1 {[%emt 0:00:30]} Qe5 {[%emt 0:00:23]} 33. Nf3 {[%emt 0:00:15]} Rxd2 {[%emt 0:00:15]} 34. Rxd2 {[%emt 0:00:05]} Rxd2 {[%emt 0:00:12]} 35. Nxe5 {[%emt 0:00:05]} fxe5 {[%emt 0:00:19]} 36. Qb5 {[%emt 0:00:14]} Rd1+ {[%emt 0:00:29]} 37. Kh2 {[%emt 0:00:02]} Bd6 {[%emt 0:00:06]} 38. g3 {[%emt 0:00:14]} Rd2 {[%emt 0:00:08]} 39. Kg2 {[%emt 0:00:10]} e4 {[%emt 0:00:13]} 40. Kf1 {[%emt 0:00:19]} e3 {[%emt 0:00:57]} 41. fxe3 {[%emt 0:00:03]} Bxg3 {[%emt 0:00:02]} 42. Qxb7 {[%emt 0:00:04]} h5 {[%emt 0:00:08]} 43. b4 {[%emt 0:00:02]} Rb2 {[%emt 0:00:23]} 44. Qe4 {[%emt 0:00:12]} h4 {[%emt 0:00:27]} 45. bxa5 {[%emt 0:00:02]} Rf2+ {[%emt 0:00:07]} 46. Kg1 {[%emt 0:00:02]} Re2 {[%emt 0:00:40]} 47. Qd4+ {[%emt 0:00:05]} Kh6 {[%emt 0:00:12]} 48. Kf1 {[%emt 0:00:09]} Rf2+ {[%emt 0:00:29]} 49. Kg1 {[%emt 0:00:02]} Re2 {[%emt 0:00:03]} 50. a6 {[%emt 0:00:02]} f5 {[%emt 0:00:11]} 51. a7 {[%emt 0:00:10]} Re1+ {[%emt 0:00:06]} 52. Kg2 {[%emt 0:00:03]} Re2+ {[%emt 0:00:02]} 53. Kf1 {[%emt 0:00:02]} Re1+ {[%emt 0:00:02]} 54. Kg2 {[%emt 0:00:04]} Re2+ {[%emt 0:00:02]} 55. Kf1 {[%emt 0:00:12]} Re1+ {[%emt 0:00:02]} 56. Kg2 {[%emt 0:00:02]} 1/2-1/2

[Event "European Online Club-ch-B 2021"]
[Site "Online"]
[Date "2021.03.27"]
[Round "6.20"]
[White "De Rover, Yong Hoon"]
[Black "Riff, Jean-Noel"]
[Result "1/2-1/2"]
[ECO "A29"]
[WhiteElo "2349"]
[BlackElo "2499"]
[Annotator "ChessBase"]
[PlyCount "130"]
[EventDate "2021.03.27"]
[EventType "team-tourn"]
[EventCountry "NET"]
[SourceTitle "playchess.com"]
[Source "ChessBase"]
[SourceQuality "1"]
[TimeControl "900+5"]

1. Nf3 {[%emt 0:00:00]} Nf6 {[%emt 0:00:07]} 2. c4 {[%emt 0:00:03]} Nc6 {[%emt 0:00:02]} 3. g3 {[%emt 0:00:40]} e5 {[%emt 0:00:03]} 4. Bg2 {[%emt 0:00:10]} Bc5 {[%emt 0:00:07]} 5. O-O {[%emt 0:01:19]} d6 {[%emt 0:00:11]} 6. d3 {[%emt 0:00:09]} h6 {[%emt 0:00:05]} 7. a3 {[%emt 0:00:05]} a5 {[%emt 0:00:03]} 8. Nc3 {[%emt 0:00:04]} O-O {[%emt 0:00:02]} 9. b3 {[%emt 0:00:06]} Bg4 {[%emt 0:00:33]} 10. Bb2 {[%emt 0:00:06]} Qd7 {[%emt 0:00:03]} 11. Rc1 {[%emt 0:00:05]} Bh3 {[%emt 0:00:05]} 12. Nd5 {[%emt 0:00:29]} Nxd5 {[%emt 0:00:06]} 13. cxd5 {[%emt 0:00:04]} Ne7 {[%emt 0:00:03]} 14. Nxe5 {[%emt 0:01:54]} dxe5 {[%emt 0:00:28]} 15. Bxh3 {[%emt 0:00:50]} Qxd5 {[%emt 0:00:45]} 16. Qc2 {[%emt 0:01:27]} Bd6 {[%emt 0:00:23]} 17. Qc4 {[%emt 0:01:55]} Qxc4 {[%emt 0:00:06]} 18. bxc4 {[%emt 0:00:00]} b6 {[%emt 0:00:01]} 19. Kh1 {[%emt 0:00:41]} Rad8 {[%emt 0:00:12]} 20. c5 {[%emt 0:00:55]} bxc5 {[%emt 0:00:04]} 21. Bg2 {[%emt 0:01:11]} Rb8 {[%emt 0:00:10]} 22. Bc3 {[%emt 0:00:07]} Rb3 {[%emt 0:00:10]} 23. Bxa5 {[%emt 0:01:02]} Rxa3 {[%emt 0:00:04]} 24. Ra1 {[%emt 0:00:03]} Rxa1 {[%emt 0:00:02]} 25. Rxa1 {[%emt 0:00:01]} Rb8 {[%emt 0:00:02]} 26. Kg1 {[%emt 0:00:43]} f5 {[%emt 0:00:16]} 27. Kf1 {[%emt 0:00:11]} Kf7 {[%emt 0:00:01]} 28. Ke1 {[%emt 0:00:32]} Ke6 {[%emt 0:00:09]} 29. Kd1 {[%emt 0:00:14]} Nd5 {[%emt 0:00:17]} 30. Bd2 {[%emt 0:00:07]} Nb4 {[%emt 0:01:19]} 31. Ra7 {[%emt 0:00:22]} Rb6 {[%emt 0:00:04]} 32. Ra8 {[%emt 0:00:17]} Ra6 {[%emt 0:00:10]} 33. Rxa6 {[%emt 0:00:16]} Nxa6 {[%emt 0:00:02]} 34. Kc2 {[%emt 0:00:03]} Nb4+ {[%emt 0:00:08]} 35. Kb3 {[%emt 0:00:03]} Nd5 {[%emt 0:00:02]} 36. Kc4 {[%emt 0:00:14]} Nf6 {[%emt 0:00:05]} 37. h3 {[%emt 0:00:15]} g5 {[%emt 0:00:05]} 38. Kb5 {[%emt 0:00:07]} e4 {[%emt 0:00:04]} 39. Kc6 {[%emt 0:00:23]} exd3 {[%emt 0:00:15]} 40. exd3 {[%emt 0:00:04]} Nd7 {[%emt 0:00:04]} 41. f4 {[%emt 0:00:38]} gxf4 {[%emt 0:00:04]} 42. gxf4 {[%emt 0:00:00]} Nf6 {[%emt 0:00:05]} 43. Be3 {[%emt 0:00:04]} Nh5 {[%emt 0:00:07]} 44. Bxc5 {[%emt 0:00:27]} Nxf4 {[%emt 0:00:05]} 45. Bf1 {[%emt 0:00:03]} Ke5 {[%emt 0:00:16]} 46. d4+ {[%emt 0:00:11]} Ke4 {[%emt 0:00:03]} 47. Bxd6 {[%emt 0:00:08]} cxd6 {[%emt 0:00:02]} 48. Kxd6 {[%emt 0:00:02]} Kxd4 {[%emt 0:00:01]} 49. Ke7 {[%emt 0:00:01]} Ke5 {[%emt 0:00:23]} 50. Kf7 {[%emt 0:00:01]} h5 {[%emt 0:00:02]} 51. Kg7 {[%emt 0:00:02]} Nd5 {[%emt 0:05:31]} 52. Kh6 {[%emt 0:00:07]} Ne3 {[%emt 0:00:03]} 53. Be2 {[%emt 0:00:04]} Ng2 {[%emt 0:00:31]} 54. Bxh5 {[%emt 0:00:06]} Nf4 {[%emt 0:00:01]} 55. Bf3 {[%emt 0:00:03]} Nxh3 {[%emt 0:00:02]} 56. Kh5 {[%emt 0:00:05]} Kf4 {[%emt 0:00:03]} 57. Bg2 {[%emt 0:00:13]} Nf2 {[%emt 0:00:14]} 58. Kh4 {[%emt 0:00:04]} Ke3 {[%emt 0:00:01]} 59. Kg3 {[%emt 0:00:03]} f4+ {[%emt 0:00:01]} 60. Kh2 {[%emt 0:00:02]} Ng4+ {[%emt 0:00:05]} 61. Kg1 {[%emt 0:00:02]} Ke2 {[%emt 0:00:02]} 62. Be4 {[%emt 0:00:04]} Ne3 {[%emt 0:00:02]} 63. Bc6 {[%emt 0:00:01]} Ke1 {[%emt 0:00:02]} 64. Bf3 {[%emt 0:00:03]} Ng2 {[%emt 0:00:04]} 65. Kxg2 {[%emt 0:00:02]} Kd2 {[%emt 0:00:02]} 1/2-1/2

[Event "European Online Club-ch-B 2021"]
[Site "Online"]
[Date "2021.03.27"]
[Round "7.1"]
[White "Santos Latasa, Jaime"]
[Black "Chlpik, Martin"]
[Result "1-0"]
[ECO "A77"]
[WhiteElo "2608"]
[BlackElo "2199"]
[Annotator "ChessBase"]
[PlyCount "75"]
[EventDate "2021.03.27"]
[EventType "team-tourn"]
[EventCountry "NET"]
[SourceTitle "playchess.com"]
[Source "ChessBase"]
[SourceQuality "1"]
[TimeControl "900+5"]

1. d4 {[%emt 0:00:00]} Nf6 {[%emt 0:00:03]} 2. c4 {[%emt 0:00:02]} c5 {[%emt 0:00:01]} 3. d5 {[%emt 0:00:03]} e6 {[%emt 0:00:02]} 4. Nc3 {[%emt 0:00:02]} exd5 {[%emt 0:00:01]} 5. cxd5 {[%emt 0:00:00]} d6 {[%emt 0:00:01]} 6. Nf3 {[%emt 0:00:03]} g6 {[%emt 0:00:03]} 7. Nd2 {[%emt 0:00:02]} Nbd7 {[%emt 0:00:02]} 8. e4 {[%emt 0:00:01]} Bg7 {[%emt 0:00:03]} 9. Be2 {[%emt 0:00:01]} O-O {[%emt 0:00:03]} 10. O-O {[%emt 0:00:02]} Re8 {[%emt 0:00:12]} 11. a4 {[%emt 0:00:03]} Ne5 {[%emt 0:00:30]} 12. Re1 {[%emt 0:01:40]} g5 {[%emt 0:01:16]} 13. Nf1 {[%emt 0:00:04]} g4 {[%emt 0:00:32]} 14. Ng3 {[%emt 0:00:05]} Qe7 {[%emt 0:02:27]} 15. Bf4 {[%emt 0:00:21]} Ng6 {[%emt 0:00:13]} 16. Bg5 {[%emt 0:00:04]} Qe5 {[%emt 0:00:40]} 17. Bxf6 {[%emt 0:00:19]} Qxf6 {[%emt 0:02:00]} 18. Bxg4 {[%emt 0:00:08]} Qg5 {[%emt 0:00:58]} 19. Bxc8 {[%emt 0:00:05]} Raxc8 {[%emt 0:00:00]} 20. Nf5 {[%emt 0:00:14]} Nh4 {[%emt 0:00:46]} 21. Nxh4 {[%emt 0:00:19]} Qxh4 {[%emt 0:00:00]} 22. g3 {[%emt 0:00:02]} Qh3 {[%emt 0:00:19]} 23. Qf3 {[%emt 0:02:25]} Re5 {[%emt 0:00:57]} 24. Nb5 {[%emt 0:02:15]} Qd7 {[%emt 0:01:11]} 25. Nc3 {[%emt 0:04:12]} Rf8 {[%emt 0:01:14]} 26. Qd3 {[%emt 0:00:21]} f5 {[%emt 0:00:32]} 27. f4 {[%emt 0:00:04]} fxe4 {[%emt 0:00:19]} 28. Nxe4 {[%emt 0:00:18]} Rh5 {[%emt 0:00:15]} 29. Ng5 {[%emt 0:00:36]} Bd4+ {[%emt 0:00:34]} 30. Kh1 {[%emt 0:00:02]} Qg7 {[%emt 0:01:17]} 31. Re6 {[%emt 0:00:32]} Bxb2 {[%emt 0:00:19]} 32. Rae1 {[%emt 0:00:08]} Qc3 {[%emt 0:00:15]} 33. Qe2 {[%emt 0:00:12]} Qd4 {[%emt 0:00:16]} 34. Qxh5 {[%emt 0:00:06]} Qxd5+ {[%emt 0:00:02]} 35. Qf3 {[%emt 0:00:05]} Qxg5 {[%emt 0:00:04]} 36. Qb3 {[%emt 0:00:18]} Qg7 {[%emt 0:00:26]} 37. Rg6+ {[%emt 0:00:04]} c4 {[%emt 0:00:02]} 38. Qxc4+ {[%emt 0:00:01]} 1-0

[Event "European Online Club-ch-B 2021"]
[Site "Online"]
[Date "2021.03.27"]
[Round "7.2"]
[White "Solcan, Martin"]
[Black "Admiraal, Miguoel"]
[Result "0-1"]
[ECO "A07"]
[WhiteElo "2076"]
[BlackElo "2475"]
[Annotator "ChessBase"]
[PlyCount "48"]
[EventDate "2021.03.27"]
[EventType "team-tourn"]
[EventCountry "NET"]
[SourceTitle "playchess.com"]
[Source "ChessBase"]
[SourceQuality "1"]
[TimeControl "900+5"]

1. g3 {[%emt 0:00:00]} d5 {[%emt 0:00:02]} 2. Bg2 {[%emt 0:00:02]} e5 {[%emt 0:00:02]} 3. c4 {[%emt 0:00:02]} d4 {[%emt 0:00:01]} 4. d3 {[%emt 0:00:01]} Nc6 {[%emt 0:00:01]} 5. Nf3 {[%emt 0:00:02]} Bb4+ {[%emt 0:00:01]} 6. Bd2 {[%emt 0:00:02]} a5 {[%emt 0:00:02]} 7. O-O {[%emt 0:00:03]} Be7 {[%emt 0:00:06]} 8. a3 {[%emt 0:00:03]} Nf6 {[%emt 0:00:03]} 9. Bg5 {[%emt 0:00:11]} Nd7 {[%emt 0:00:01]} 10. Bxe7 {[%emt 0:00:02]} Qxe7 {[%emt 0:00:01]} 11. Nbd2 {[%emt 0:00:02]} Nc5 {[%emt 0:00:08]} 12. Rb1 {[%emt 0:00:20]} O-O {[%emt 0:00:06]} 13. Re1 {[%emt 0:00:09]} a4 {[%emt 0:00:05]} 14. Qc2 {[%emt 0:00:14]} Bf5 {[%emt 0:00:11]} 15. Nh4 {[%emt 0:00:03]} Bd7 {[%emt 0:00:06]} 16. e3 {[%emt 0:00:12]} dxe3 {[%emt 0:00:06]} 17. Rxe3 {[%emt 0:00:04]} Nd4 {[%emt 0:00:09]} 18. Qc3 {[%emt 0:00:09]} Qd6 {[%emt 0:01:03]} 19. Nhf3 {[%emt 0:01:21]} f6 {[%emt 0:00:33]} 20. Ne4 {[%emt 0:00:20]} Nxe4 {[%emt 0:00:03]} 21. Rxe4 {[%emt 0:00:17]} Bc6 {[%emt 0:00:17]} 22. Nxd4 {[%emt 0:08:15]} Bxe4 {[%emt 0:00:08]} 23. Ne6 {[%emt 0:00:19]} Bxg2 {[%emt 0:00:27]} 24. Nxf8 {[%emt 0:00:06]} Bc6 {[%emt 0:00:14]} 0-1

[Event "European Online Club-ch-B 2021"]
[Site "Online"]
[Date "2021.03.27"]
[Round "7.3"]
[White "Matnadze, Ana"]
[Black "Lecky, Juraj"]
[Result "1-0"]
[ECO "A62"]
[WhiteElo "2421"]
[BlackElo "2070"]
[Annotator "NA"]
[PlyCount "51"]
[EventDate "2021.03.27"]
[EventType "team-tourn"]
[EventCountry "NET"]
[SourceTitle "playchess.com"]
[Source "ChessBase"]
[SourceQuality "1"]
[TimeControl "900+5"]

1. d4 {[%emt 0:00:00]} Nf6 {[%emt 0:00:03]} 2. Nf3 {[%emt 0:00:02]} e6 {[%emt 0:00:06]} 3. c4 {[%emt 0:00:03]} c5 {[%emt 0:00:03]} 4. d5 {[%emt 0:00:02]} exd5 {[%emt 0:00:01]} 5. cxd5 {[%emt 0:00:01]} d6 {[%emt 0:00:01]} 6. Nc3 {[%emt 0:00:02]} g6 {[%emt 0:00:01]} 7. g3 {[%emt 0:00:01]} Bg7 {[%emt 0:00:02]} 8. Bg2 {[%emt 0:00:02]} O-O {[%emt 0:00:02]} 9. O-O {[%emt 0:00:01]} a6 {[%emt 0:00:08]} 10. a4 {[%emt 0:00:02]} Re8 {[%emt 0:00:05]} 11. Bf4 {[%emt 0:00:03]} Nh5 {[%emt 0:02:49]} 12. Bg5 {[%emt 0:00:08]} Bf6 {[%emt 0:00:05]} 13. Bh6 {[%emt 0:00:03]} Bg7 {[%emt 0:00:26]} 14. Qd2 {[%emt 0:00:06]} Nd7 {[%emt 0:00:21]} 15. h3 {[%emt 0:00:11]} Ne5 {[%emt 0:02:18]} 16. Nxe5 {[%emt 0:00:23]} Bxe5 {[%emt 0:00:19]} 17. g4 {[%emt 0:00:46]} Bxg4 {[%emt 0:02:05]} 18. hxg4 {[%emt 0:01:48]} Qh4 {[%emt 0:00:08]} 19. Rfe1 {[%emt 0:00:12]} Bh2+ {[%emt 0:03:01]} 20. Kf1 {[%emt 0:00:06]} Qxg4 {[%emt 0:00:04]} 21. Qg5 {[%emt 0:02:02]} Qc4 {[%emt 0:02:05]} 22. Bf3 {[%emt 0:00:19]} Re5 {[%emt 0:01:45]} 23. Qg4 {[%emt 0:01:11]} Qb3 {[%emt 0:00:14]} 24. Qh4 {[%emt 0:00:58]} Qxb2 {[%emt 0:00:10]} 25. Ne4 {[%emt 0:00:24]} Rxe4 {[%emt 0:00:21]} 26. Qxe4 {[%emt 0:00:35]} 1-0